Cogmind - Beta 16 *** ADVENTURER MODE // 2025.12.14 @ 07:33:19 Player: Jefffff Result: Destroyed by Y-45 Defender with Heavy Assault Rifle Performance ------------- Evolutions (0) 0 Regions Visited (3) 600 Robots Destroyed (29) 145 Value Destroyed (508) 508 Prototype IDs (2) 40 Alien Tech Used (0) 0 Bonus (0) 0 TOTAL SCORE: 1293 Bonus ------- None Cogmind --------- Core Integrity 0/250 Matter 300/300 Energy 125/125 System Corruption 0% Temperature Cool (0) Movement Core (500) Ox9 Location -8/Recycling Parts ------- > --- POWER (1) -------- Light Ion Engine > --- PROPULSION (2) --- (None) > --- UTILITY (2) ------ Large Storage Unit Improved Terrain Scanner > --- WEAPON (2) ------- Assault Rifle Heavy Battle Rifle > --- INVENTORY (15) --- Light Ion Engine Improved Heat Sink Improved Heat Sink Structural Scanner Machine Analyzer Advanced Visual Processing Unit Sensor Array Seismic Detector Light Armor Plating Light Armor Plating Rainbow Chip Autobeam Grenade Launcher Mining Laser Heavy Mace Peak State ------------ > --- POWER ------------ Light Ion Engine > --- PROPULSION ------- (None) > --- UTILITY ---------- Large Storage Unit Improved Terrain Scanner > --- WEAPON ----------- Heavy Battle Rifle Mining Claw > --- INVENTORY -------- Light Ion Engine Improved Heat Sink Improved Heat Sink Structural Scanner Machine Analyzer Visual Processing Unit Sensor Array Seismic Detector Light Armor Plating Light Armor Plating Rainbow Chip Assault Rifle Grenade Launcher Mining Laser [Rating: 13] Favorites ----------- Power Light Ion Engine Engine Light Ion Engine Propulsion Aluminum Leg Leg Aluminum Leg Utility Improved Terrain Scanner Device Improved Terrain Scanner Storage Large Storage Unit Weapon Light Assault Rifle Energy Gun Small Laser Ballistic Gun Light Assault Rifle Slashing Weapon Mining Claw Build | -11 -10 -10 -8 ------- Run | Yrd Mat Sub Rec Slots Evolved . | . . . . Power . | . . . . Propulsion . | . . . . Utility . | . . . . Weapon . | . . . . Parts Attached 19 | 7 8 4 . Power 3 | 1 1 1 . Engine 3 | 1 1 1 . Core . | . . . . Reactor . | . . . . Propulsion 4 | 2 2 . . Treads . | . . . . Leg 4 | 2 2 . . Wheel . | . . . . Hover . | . . . . Flight . | . . . . Utility 4 | 2 2 . . Device 1 | 1 . . . Storage 3 | 1 2 . . Processor . | . . . . Hackware . | . . . . Protection . | . . . . Artifact . | . . . . Weapon 8 | 2 3 3 . Energy Gun 1 | 1 . . . Energy Cannon . | . . . . Ballistic Gun 6 | 1 3 2 . Ballistic Cannon . | . . . . Launcher . | . . . . Special Weapon . | . . . . Impact Weapon . | . . . . Slashing Weapon 1 | . . 1 . Piercing Weapon . | . . . . Special Melee Weapon . | . . . . Unidentified Prototypes . | . . . . Parts Lost 6 | . 3 3 . Power 2 | . 1 1 . Propulsion 2 | . 1 1 . Utility . | . . . . Weapon 2 | . 1 1 . Highest Loss Streak 3 | . 2 3 . To Critical Strikes . | . . . . Average Backups 12 | . 10 14 15 Power 1 | . 2 1 1 Propulsion . | . . . . Utility 7 | . 5 9 10 Weapon 2 | . 2 3 4 Tool/Special . | . . . . Unused Backups 16 | . 2 . 14 Power 2 | . 1 . 1 Propulsion . | . . . . Utility 12 | . 1 . 11 Weapon 2 | . . . 2 Tool/Special . | . . . . Average Slot Usage (%) 81 | . 88 75 71 Engine 13 | . 12 13 14 Leg 11 | . 18 4 . Device 14 | . 14 14 14 Storage 14 | . 14 14 14 Ballistic Gun 22 | . 27 15 28 Slashing Weapon 5 | . . 12 . Peak Build Rating 13 | 9 10 13 13 Average Rating 10 | 6 9 11 13 On Entrance 8 | . 9 10 13 Avg Prop Armor Cover (%) . | . . . . Naked Turns . | . . . . Heaviest Build 30 | 14 29 30 30 Greatest Support 20 | 20 20 10 3 Greatest Overweight (x) 9 | . 2 9 9 Average Overweight (x) 2 | . 1 5 9 Largest Inventory Capacity 15 | 8 15 15 15 Average Capacity 14 | 7 14 15 15 Most Carried 15 | 2 15 15 15 Average Carried 12 | . 10 14 14 Final Capacity 15 | 8 15 15 15 Final Carried 15 | 2 15 15 15 Class Distribution -------------------- 53% | Mutant 46% | Scavenger-Mutant Dominant Class ---------------- Scavenger-Mutant | -10/Materials Mutant | -10/Subcaves Mutant | -8/Recycling Resources | -11 -10 -10 -8 ----------- Run | Yrd Mat Sub Rec Matter Collected 553 | 102 313 85 53 Remotely . | . . . . Salvage Created 798 | 102 567 129 . Parts 61 | 4 44 13 . Haulers Intercepted 1 | . 1 . . Recyclers Shooed 1 | . 1 . . Parts Field Recycled . | . . . . Retrieved Matter . | . . . . Parts Self-Destructed 15 | . . 15 . Prevented . | . . . . Parts Restored . | . . . . Kills | -11 -10 -10 -8 ------- Run | Yrd Mat Sub Rec Combat Hostiles Destroyed 16 | . 9 7 . Melee 2 | . . 2 . Guns 14 | . 9 5 . Classes Destroyed 10 | 2 6 2 . Worker 2 | . 2 . . Tunneler 1 | 1 . . . Hauler 1 | . 1 . . Recycler 3 | 1 2 . . Mechanic 1 | . 1 . . Turret 2 | . . 2 . Watcher 3 | . 3 . . Swarmer 10 | . 6 4 . Grunt 3 | . 3 . . Subdweller 3 | . . 3 . Best Kill Streak 4 | 2 4 4 . Combat Bots Only 4 | . 3 4 . Max Kills in Single Turn 1 | 1 1 1 . Gunslinging . | . . . . Exploded . | . . . . Melee 1 | . . 1 . Uniques/NPCs Destroyed . | . . . . Combat | -11 -10 -10 -8 -------- Run | Yrd Mat Sub Rec Hostile Shots Fired 175 | . 77 92 6 Missed 57 | . 26 26 5 Hits 118 | . 51 66 1 Projectile 118 | . 51 66 1 Critical Strikes 1 | . 1 . . Damage Taken 1129 | . 531 586 12 Core 258 | . 76 170 12 Absorbed by Shields . | . . . . Ignored by Resistances 346 | . 159 183 4 Core Remaining (%) 100 | 100 . . . Volleys Fired 93 | 5 67 21 . Largest 2 | 2 2 2 . Hottest 60 | 60 60 53 . Shots Fired 169 | 10 123 36 . Gun 169 | 10 123 36 . Cannon . | . . . . Launcher . | . . . . Special . | . . . . Kinetic 160 | 5 119 36 . Thermal 9 | 5 4 . . Explosive . | . . . . Electromagnetic . | . . . . Robot Hit Streak 16 | 4 16 12 . Robot Miss Streak 3 | 1 3 1 . Penetration Max . | . . . . Secondary Targets 5 | . 3 2 . Max Gunslinging Chain 1 | . 1 1 . Shots Hit Robots 135 | 6 89 40 . Core Hits 53 | 3 36 14 . Critical Kills 1 | . 1 . . Critical Parts Destroyed 2 | . 1 1 . Critical Strikes 3 | . 2 1 . Destroy 3 | . 2 1 . Melee Attacks 25 | . . 25 . Impact . | . . . . Slashing 25 | . . 25 . Piercing . | . . . . Sneak Attacks . | . . . . Combat Hostiles . | . . . . Follow-up Attacks . | . . . . Damage Inflicted 1773 | 75 927 771 . Guns 1454 | 75 872 507 . Cannons . | . . . . Explosions 50 | . 50 . . Melee 264 | . . 264 . Ramming 5 | . 5 . . Kinetic 1398 | 51 840 507 . Thermal 56 | 24 32 . . Explosive 50 | . 50 . . Electromagnetic . | . . . . Impact . | . . . . Slashing 264 | . . 264 . Piercing . | . . . . Highest Corruption . | . . . . Average Corruption . | . . . . Corruption Purged . | . . . . Corruption Blocked . | . . . . Overload Shots . | . . . . Overflow Damage 21 | . 21 . . Projectiles . | . . . . Explosions 21 | . 21 . . Melee . | . . . . Knockbacks . | . . . . Impact . | . . . . Kinetic . | . . . . Secondary . | . . . . Self-Inflicted Damage 90 | . 90 . . Shots 1 | . 1 . . Rammed . | . . . . Targets Rammed 3 | . 3 . . Kicked 3 | . 3 . . Crushed . | . . . . Highest Temperature 15 | . 15 . . Average Temperature 8 | . 8 . . Received Heat Transfer 516 | . 264 252 . Siege Activations . | . . . . Martial Activations . | . . . . Shielding Activations . | . . . . Robots Disrupted . | . . . . Combat Hostiles . | . . . . Robots Corrupted . | . . . . Combat Hostiles . | . . . . Parts Fried . | . . . . Impact Corruptions . | . . . . Robots Melted . | . . . . Combat Hostiles . | . . . . Parts Melted . | . . . . Heat Transferred 125 | 50 75 . . Parts Sabotaged . | . . . . Parts Stolen . | . . . . Parts Stripped . | . . . . Power Chain Reactions . | . . . . Alert | -11 -10 -10 -8 ------- Run | Yrd Mat Sub Rec Maximum Alert Level . | . . . . Low Security (%) 100 | 100 100 . 100 Level 1 . | . . . . Level 2 . | . . . . Level 3 . | . . . . Level 4 . | . . . . Level 5 . | . . . . High Security . | . . . . Max Security . | . . . . Peak Influence 105 | 5 105 . 84 Initial 84 | . . . 84 Average 14 | . 13 . 27 Influence Increases 622 | 10 357 255 . Destroy 0b10 Robot/C 300 | . 180 120 . Destroy 0b10 Robot/NC 55 | 10 45 . . Destroy Leader 48 | . 48 . . Successful Hack 13 | . 13 . . Disable Machine 9 | . 9 . . Destroy Structure 32 | . 32 . . Lose Combat Pursuer 165 | . 30 135 . Influence Decreases 622 | 10 357 50 205 Entered New Map 121 | . . . 121 Time Decay 481 | 10 337 50 84 Lost Part 20 | . 20 . . Squads Dispatched . | . . . . Investigation . | . . . . Extermination . | . . . . Reinforcement . | . . . . Assault . | . . . . Garrison . | . . . . Intercept . | . . . . Searches Triggered . | . . . . Construction Impeded . | . . . . Haulers Reinforced . | . . . . Active Scanning Responses . | . . . . Cargo Convoy Interrupts . | . . . . Stealth | -11 -10 -10 -8 --------- Run | Yrd Mat Sub Rec Distress Signals . | . . . . Communications Jammed . | . . . . Distress Signals . | . . . . Times Spotted 32 | . 18 11 3 Peak Tracking Total 6 | . 3 6 . Tactical Retreats 5 | . 1 4 . Traps | -11 -10 -10 -8 ------- Run | Yrd Mat Sub Rec Traps Triggered 1 | . 1 . . Indirectly . | . . . . Trap Hack Attempts . | . . . . Triggered . | . . . . Disarmed . | . . . . Reprogrammed . | . . . . Reused . | . . . . Traps Extracted . | . . . . Installed . | . . . . Triggered . | . . . . Machines | -11 -10 -10 -8 ---------- Run | Yrd Mat Sub Rec Machines Disabled 2 | . 1 1 . Max in Single Turn 1 | . 1 1 . Machines Repaired . | . . . . Machines Dismantled . | . . . . Machines Sabotaged . | . . . . Overloaded Fab Kills . | . . . . Hacking | -11 -10 -10 -8 --------- Run | Yrd Mat Sub Rec Machines Accessed 8 | . 6 . 2 Terminals 7 | . 5 . 2 Fabricators . | . . . . Repair Stations . | . . . . Recycling Units 1 | . 1 . . Scanalyzers . | . . . . Garrison Access . | . . . . Total Hacks 23 | . 18 . 5 Successful 13 | . 11 . 2 Failed 10 | . 7 . 3 Catastrophic . | . . . . Database Lockouts . | . . . . Manual 12 | . 10 . 2 Terminals 19 | . 14 . 5 Fabricators . | . . . . Repair Stations . | . . . . Recycling Units 4 | . 4 . . Scanalyzers . | . . . . Garrison Access . | . . . . Terminal Hacks 7 | . 5 . 2 Record 2 | . 1 . 1 Robot Analysis 3 | . 3 . . Prototype ID Bank 1 | . . . 1 Alert Level 1 | . 1 . . Fabricator Hacks . | . . . . Repair Station Hacks . | . . . . Recycling Unit Hacks 3 | . 3 . . Recycle Component 1 | . 1 . . Process 1 | . 1 . . Retrieve Matter 1 | . 1 . . Scanalyzer . | . . . . Garrison Access Hacks . | . . . . Unauthorized Hacks 3 | . 3 . . Terminals 3 | . 3 . . Botnet 3 | . 3 . . Fabricators . | . . . . Repair Stations . | . . . . Recycling Units . | . . . . Scanalyzers . | . . . . Garrison Access . | . . . . Data Cores Recovered . | . . . . Used . | . . . . Hacking Detections 7 | . 5 . 2 Full Trace Events 1 | . 1 . . Feedback Events . | . . . . Feedback Blocked . | . . . . Robot Schematics Acquired . | . . . . Robots Built . | . . . . Authchips . | . . . . Time . | . . . . Total Robot Build Rating . | . . . . Part Schematics Acquired . | . . . . Parts Built . | . . . . Authchips . | . . . . Time . | . . . . Total Part Build Rating . | . . . . Part Studies Acquired . | . . . . Parts Repaired . | . . . . Time . | . . . . Parts Recycled 1 | . 1 . . Recycled Matter 131 | . 131 . . Retrieved Matter 131 | . 131 . . Retrieved Components . | . . . . Parts Scanalyzed . | . . . . Part Schematics Acquired . | . . . . Parts Damaged . | . . . . Bothacking | -11 -10 -10 -8 ------------ Run | Yrd Mat Sub Rec Used RIF Installer . | . . . . Robots Hacked . | . . . . Non-combat . | . . . . Combat . | . . . . Robot Hacks Applied . | . . . . Relay Couplers Released . | . . . . Fabnet Peak Effective % . | . . . . Robots Rewired . | . . . . Allies Hacked . | . . . . Hacks Repelled . | . . . . Allies | -11 -10 -10 -8 -------- Run | Yrd Mat Sub Rec Total Allies . | . . . . Largest Group . | . . . . Highest-Rated Group . | . . . . Highest-Rated Ally . | . . . . Total Orders . | . . . . Ally Attacks . | . . . . Total Damage . | . . . . Kills . | . . . . Allies Corrupted . | . . . . Allies Melted . | . . . . Intel | -11 -10 -10 -8 ------- Run | Yrd Mat Sub Rec Active Infowar (turns) 3836 | 25 1843 1679 289 Terrain 3836 | 25 1843 1679 289 Robot Analysis Total 3 | . 3 . . Derelict Logs Recovered . | . . . . Drone Launches . | . . . . Drone Recoveries . | . . . . Exploration | -11 -10 -10 -8 ------------- Run | Yrd Mat Sub Rec Turns Passed 3882 | 71 1843 1679 289 Spaces Moved 1226 | 42 746 380 58 Core 258 | 9 . 191 58 Treads . | . . . . Legs 968 | 33 746 189 . Wheels . | . . . . Hover . | . . . . Flight . | . . . . Fastest Speed 50 | 50 120 260 500 Average Speed 276 | 105 216 380 500 Slowest Speed 500 | 120 260 500 500 Overloaded Moves . | . . . . Propulsion Burnouts . | . . . . Robots Hopped . | . . . . Potential Cave-ins . | . . . . Cave-ins Triggered . | . . . . Exploration Rate (%) 29 | 4 75 20 17 Regions Visited 3 Branch Regions 2 Pre-discovered Areas . | . . . . Known Exits Taken . | . . . . Unknown Exits Taken 3 | 1 1 1 . Scrap Searched . | . . . . Spaces Dug . | . . . . Terrain Destroyed 35 | . 35 . . Melee . | . . . . Projectile . | . . . . AOE 35 | . 35 . . Terrain Rammed . | . . . . Walls Destroyed . | . . . . Machines Disabled . | . . . . Actions | -11 -10 -10 -8 --------- Run | Yrd Mat Sub Rec Total 1514 | 55 865 532 62 Wait 116 | . 17 99 . Move 1223 | 41 745 379 58 Hop . | . . . . Pick Up 25 | 2 18 3 2 Fast Attach 9 | 7 2 . . Attach 2 | . . 2 . Detach . | . . . . Swap 8 | . 6 2 . Drop 10 | . 7 1 2 Fire 93 | 5 67 21 . Melee 25 | . . 25 . Ram . | . . . . Kick 3 | . 3 . . Crush . | . . . . Escape Stasis . | . . . . Rewire . | . . . . Trap . | . . . . Miscellaneous . | . . . . Route ------- -11/Scrapyard -10/Materials (discovered 3 exits: [*Mat] / [*Min] / [*Sub]) -10/Subcaves (discovered 2 exits: [*Mat] / *Rec) -8/Recycling History --------- Turn | Location | Event 22 | -11/Scrapyard | Discovered new exit (range 15) 72 | -11/Scrapyard | Entered Materials 308 | -10/Materials | Build established: Mutant 990 | -10/Materials | Discovered new exit (range 8) 1049 | -10/Materials | Build established: Scavenger-Mutant 1603 | -10/Materials | Discovered new exit (range 16) 1810 | -10/Materials | Discovered new exit (range 10) 1915 | -10/Materials | Entered Subcaves 1916 | -10/Subcaves | Approached by a straggling Scientist 2029 | -10/Subcaves | Shifting Twisted Machinery released Shrapnel Trap 2050 | -10/Subcaves | Shifting Twisted Machinery released Hvy. Battle Rifle 2410 | -10/Subcaves | A swath of the cavern ceiling suddenly collapsed 2469 | -10/Subcaves | A Subdweller sparked back to life 2469 | -10/Subcaves | A Subdweller sparked back to life 2501 | -10/Subcaves | Core integrity fell below 50% 2520 | -10/Subcaves | Found Prototype Processor 2539 | -10/Subcaves | Lost 3 parts (1p1n1w) 2743 | -10/Subcaves | A swath of the cavern ceiling suddenly collapsed 2758 | -10/Subcaves | Discovered new exit (range 15) 2789 | -10/Subcaves | Build established: Mutant 3480 | -10/Subcaves | Discovered new exit (range 9) 3514 | -10/Subcaves | Core integrity fell below 20% 3594 | -10/Subcaves | Entered Recycling 3883 | -8/Recycling | Destroyed by Y-45 Defender with Heavy Assault Rifle Last Messages --------------- 03654_ Current location identified: Recycling >>Query(Lightweight Power Sources) Many engines, cores, and reactors have an alternative lightweight variant that retains the generation efficiency of its standard version but minimizes built-in battery space to reduce weight for certain robot designs, especially those with strict weight restrictions such as hovering and flight-based models. >>Prototypes Downloading prototype IDs... Impact Mace Prc. Assault Rifle 03669_ Connecting with Terminal... 03779_ Dropped Mining Claw. 03780_ Acquired Hvy. Mace. 03789_ R-06 Scavenger collects Mining Claw. 03790_ Acquired 53 matter. 03881_ Y-45 Defender springs to life. Map ----- +----------------------------------------------------+ | ?????????????????????????????????????????????????? | | ?????????????????????????????????????????????????? | | ???????? ??????????????????????????????????????? | | ????? ?# ??????????????????????????????????????? | | ???????# ???????? ????????????????????????????? | | ???????# #?????????????????????????????????????? | | ???????# #???? ????????????????????????????????? | | ???????# #???? ????????????????????????????????? | | ???????/ +?????????????????????????????????????? | | #??????# #?????????????????????????????????????? | | ???? ??# #?????????? ???? ????????????????????? | | ?????? # #?????????# ????????????????????????? | | #??????# #????#??#?# ????????????????????????? | | ??#????# #???????#?# ????????????????????????? | | ????? # ########## ????????????????????????? | | ?#??#??# # ] ##Y ?? ??"??????????????????? | | ??????## # ## +?? ??????????????????? | | ???????# #! ## # ?? "??????????????????? | | ???#?#?# + * # #?? ?"?????????????????? | | ?????#?# # [ /##Y #?? ??"????????????????? | | ???#???# # [ # #? ????????????????????? | | ?####### # ##Y ##+##?#?????????????????? | | #?# # # % ## #????????????????????? | | ??# "" # # ! ## #??#?#???????????????? | | ??# T" # ########+## ### #??????????????? | | ??# "" # #????#?# @ T u #???????????? | | ### # ###?#??# ###### #??????????????? | | #"" # !#????# #???#?#?????????????????? | | #"T + ##??##+###+#######????#?????????????? | | #"" # ! #???# #??????????????????? | | ### # ###??## #??????????????????? | | ??# # #?#?#?# #?#????????????????? | | ??# # #??#??# #??#??##???????????? | | ??# # #?#???# #??????????????????? | | ??# #####?????# #?? ???????????????? | | ??######???##????# #??????????????????? | | ?#??##??##???????# #??????????????????? | | ??????#????????### #??????????????????? | | ????#????????#???# #??????????????????? | | ????#???????????## #??????????????????? | | #????#??##???????# #??????????????????? | | ?????????????????######### ####??????????????????? | | ??????????????????????#???##?????????????????????? | | ??????????#???????????????#??????????????????????? | | | | | | | | | | | | | +----------------------------------------------------+ Best States ------------- Heat Dissipation 25 Energy Generation 10 Energy Capacity 250 Matter Stores 300 Matter Capacity 300 Sight Range 16 Terrain Scan Range 16 Terrain Scan Density 10 Resistance: KI 20 Resistance: TH 20 Resistance: EX 20 Resistance: EM 20 Resistance: I 20 Resistance: S 20 Resistance: P 20 Evasion (%) 55 Offensive Hacking 10 Item Schematics ----------------- None Robot Schematics ------------------ None Fabricated ------------ Nothing Repaired ---------- Nothing Studied --------- None Alien Tech Used ----------------- None Achievements -------------- None Challenges ------------ None Game ------ Seed ReactionInertialBoomstick Manual? 0 Play Time 00:13:32 Cumulative 266.3 hours Start 2025.12.14 @ 07:20:18 End 2025.12.14 @ 07:33:19 Sessions 1 Manual Loads 0 Difficulty Adventurer Special Mode None Game No. 309 Rogue 0 Adventurer 309 Explorer 0 Win Type - Total 0 Types 0/0/0/0/0/0/0/0/0/0 Lore% 73 Gallery% 59 Achievement% 35 Wizard Run 0 Options --------- Layout 2 ASCII 0 Keyboard 0 Movement Mouse Keybinds 0 Fullscreen 2 Font 48/Smallcaps Map View 50x44 Zoom Use 0% Tactical HUD 1 Map Filters NONE Filters NONE Steam 1 RUN: c59f6eec-6938-45a4-89ca-89fa7265d2fc